bitfinex-derivatives/quotes_BTCF0:USTF0_20250929
["timestamp","ask_amount","ask_price","bid_price","bid_amount"]
[1759105491686,0.1146325,112320.0,112310.0,1.27783561]
[1759105491886,0.13950806,112320.0,112310.0,1.27783561]
[1759105493182,0.13950806,112320.0,112310.0,0.44495561]
[1759105493384,0.15275806,112320.0,112310.0,1.27711561]
[1759105493588,0.51355806,112320.0,112310.0,0.44495561]
[1759105493791,0.54555707,112320.0,112310.0,1.27707561]
[1759105496491,0.54555707,112320.0,112310.0,1.23507299]
[1759105497790,0.44331457,112320.0,112310.0,1.23507299]
[1759105498691,0.53230707,112320.0,112310.0,1.23507299]
[1759105499186,0.44331457,112320.0,112310.0,1.23507299]
[1759105499578,0.08251457,112320.0,112310.0,1.23507299]
[1759105501984,0.17150707,112320.0,112310.0,1.23387299]
[1759105504686,0.08251457,112320.0,112310.0,1.23387299]
[1759105504888,0.08251457,112320.0,112310.0,1.23303299]
[1759105505089,0.08251457,112320.0,112310.0,1.23287299]
[1759105506696,0.09576457,112320.0,112310.0,1.23279299]
[1759105506897,0.08251457,112320.0,112310.0,1.23279299]
[1759105507096,0.08251457,112320.0,112310.0,1.23247299]
[1759105508697,0.08251457,112320.0,112310.0,0.40295299]
[1759105508889,0.08251457,112320.0,112310.0,1.23239299]
[1759105510390,0.05987457,112320.0,112310.0,1.23239299]
[1759105510591,0.05987457,112320.0,112310.0,1.59319299]
[1759105510791,0.02787556,112320.0,112310.0,1.59319299]
[1759105511089,0.02787556,112320.0,112310.0,1.99319299]
[1759105511296,0.07957138,112330.0,112320.0,0.1108125]
[1759105511490,0.07957138,112330.0,112320.0,0.38987509]
[1759105511991,0.05171668,112330.0,112320.0,1.15067509]
[1759105512191,0.4381551,112360.0,112350.0,0.1020387]
[1759105512487,0.5497959,112360.0,112350.0,0.38052116]
[1759105512693,0.5497959,112360.0,112350.0,0.38931356]
[1759105513198,0.5497959,112360.0,112350.0,0.64596602]
[1759105513199,0.4249051,112360.0,112350.0,0.64596602]
[1759105513397,0.3608,112360.0,112350.0,0.64596602]
[1759105514198,0.4381551,112370.0,112360.0,0.0889608]
[1759105514499,0.4249051,112370.0,112360.0,1.19636326]
[1759105514891,0.3608,112370.0,112360.0,1.19636326]
[1759105515095,0.4249051,112370.0,112360.0,0.36744326]
[1759105515300,0.3608,112370.0,112360.0,1.19616326]
[1759105515690,0.3608,112370.0,112360.0,0.36744326]
[1759105515894,0.38348,112370.0,112360.0,0.36744326]
[1759105516295,0.38348,112370.0,112360.0,1.19588326]
[1759105516900,0.38348,112370.0,112360.0,0.36744326]
[1759105517107,0.38348,112370.0,112360.0,1.19584326]
[1759105517293,0.38348,112370.0,112360.0,0.36744326]
[1759105517800,0.39723,112370.0,112360.0,1.19564326]
[1759105518303,0.39723,112370.0,112360.0,0.36744326]
[1759105518501,0.39723,112370.0,112360.0,1.19552326]
[1759105527204,0.38348,112370.0,112360.0,1.19552326]
[1759105528098,0.4861829,112370.0,112360.0,1.19552326]
[1759105528501,0.3608,112370.0,112360.0,1.19552326]
[1759105528695,0.3608,112380.0,112370.0,0.1204129]
[1759105528900,0.485055,112380.0,112370.0,0.36698536]
[1759105529705,0.485055,112380.0,112370.0,0.27803246]
[1759105529706,0.885055,112380.0,112370.0,0.27803246]
[1759105529906,0.885055,112380.0,112370.0,0.36698536]
[1759105530098,0.885055,112380.0,112370.0,0.1103329]
[1759105530296,0.885055,112380.0,112370.0,0.36698536]
[1759105530603,0.885055,112380.0,112370.0,0.34560536]
[1759105531114,0.885055,112380.0,112370.0,0.36698536]
[1759105531717,0.885055,112380.0,112370.0,0.25665246]
[1759105533905,1.711775,112380.0,112370.0,0.25665246]
[1759105534213,0.1242629,112370.0,112360.0,0.0889562]
[1759105534397,0.4850629,112370.0,112360.0,0.0889562]
[1759105534603,0.4850629,112370.0,112360.0,0.1103362]
[1759105535405,0.4850629,112370.0,112360.0,0.36698866]
[1759105535808,0.4850629,112370.0,112360.0,0.36699326]
[1759105536009,0.8850629,112370.0,112360.0,0.25665246]
[1759105536512,0.1242708,112360.0,112350.0,0.36700116]
[1759105536713,0.49396476,112360.0,112350.0,0.27803246]
[1759105536901,0.49396476,112360.0,112350.0,0.36700116]
[1759105537807,0.89396476,112360.0,112350.0,0.25665246]
[1759105538109,0.1242867,112340.0,112330.0,0.14228345]
[1759105538414,0.4850867,112340.0,112330.0,0.39893591]
[1759105539308,0.4850867,112340.0,112330.0,0.40493591]
[1759105540108,0.4850867,112340.0,112330.0,0.40593591]
[1759105540811,0.38165082,112340.0,112330.0,1.07565837]
[1759105541409,0.38165082,112340.0,112330.0,1.12361055]
[1759105541604,0.38236,112350.0,112340.0,0.1103567]
[1759105541910,0.3608,112350.0,112340.0,1.49537477]
[1759105542115,0.38111836,112360.0,112350.0,0.1204287]
[1759105542316,0.40267836,112360.0,112350.0,0.63373362]
[1759105542910,0.49163916,112360.0,112350.0,0.63373362]
[1759105543113,0.50538916,112360.0,112350.0,0.63373362]
[1759105543610,0.50538916,112360.0,112350.0,0.62365362]
[1759105543815,0.50538916,112360.0,112350.0,0.36700116]
[1759105544418,0.50538916,112360.0,112350.0,0.62365362]
[1759105545519,0.40267836,112360.0,112350.0,0.62365362]
[1759105545914,0.3608,112360.0,112350.0,1.02365362]
[1759105546319,0.4850629,112370.0,112360.0,0.1103408]
[1759105546513,0.4850629,112370.0,112360.0,0.36699326]
[1759105547114,0.4850629,112370.0,112360.0,0.27803246]
[1759105547315,0.4850629,112370.0,112360.0,0.36699326]
[1759105550825,0.4850629,112370.0,112360.0,0.1103408]
[1759105551125,0.4850629,112370.0,112360.0,0.36699326]
[1759105552323,0.1236308,112360.0,112350.0,0.1106642]
[1759105552525,0.4844308,112360.0,112350.0,0.36731666]
[1759105555242,0.4844308,112360.0,112350.0,0.27835246]
[1759105555538,0.4844308,112360.0,112350.0,0.36732116]
[1759105557234,0.4844308,112360.0,112350.0,0.62397362]
[1759105557944,0.4844308,112360.0,112350.0,0.36732116]
[1759105558135,0.4844308,112360.0,112350.0,0.39924431]
[1759105558335,0.4844308,112360.0,112350.0,0.65601757]
[1759105558532,0.4844308,112360.0,112350.0,0.36738156]
[1759105558735,0.4844308,112360.0,112350.0,0.31033601]
[1759105559941,0.50534932,112360.0,112350.0,0.28863601]
[1759105560140,0.76206218,112360.0,112350.0,0.28863601]
[1759105560644,0.50534932,112360.0,112350.0,0.28863601]
[1759105561040,1.16206218,112360.0,112350.0,0.28863601]
[1759105561249,0.1236387,112350.0,112340.0,0.28863601]
[1759105561447,1.3109987,112350.0,112340.0,0.54534887]
[1759105561745,1.3109987,112350.0,112340.0,0.56704887]
[1759105562046,0.1236467,112340.0,112330.0,0.19055933]
[1759105562345,0.1236467,112340.0,112330.0,0.39932001]
[1759105562346,0.4844467,112340.0,112330.0,0.39932001]
[1759105562540,0.4814467,112340.0,112330.0,0.39932001]
[1759105563344,0.4814467,112340.0,112330.0,0.40032001]
[1759105563844,0.4814467,112340.0,112330.0,0.65703287]
[1759105565149,0.4814467,112340.0,112330.0,0.66103287]
[1759105569338,0.39547,112340.0,112330.0,0.66103287]
[1759105569544,0.4844466,112340.0,112330.0,0.66103287]
[1759105579060,0.39547,112340.0,112330.0,0.66103287]
[1759105581653,0.39547,112340.0,112330.0,0.14760715]
[1759105581957,0.4844467,112340.0,112330.0,0.14760715]
[1759105582154,0.4844467,112340.0,112330.0,0.40432001]
[1759105582354,0.4844467,112340.0,112330.0,0.66103287]
[1759105584358,0.39547,112340.0,112330.0,0.66103287]
[1759105586454,0.39712,112350.0,112340.0,0.1112167]
[1759105586654,0.39712,112350.0,112340.0,0.62464242]
[1759105587057,0.4860887,112350.0,112340.0,0.62464242]
[1759105587857,0.4860887,112350.0,112340.0,0.62664242]
[1759105590358,0.39712,112350.0,112340.0,0.62664242]
[1759105590662,0.39712,112350.0,112340.0,0.65856557]
[1759105591362,0.39712,112350.0,112340.0,0.91527843]
[1759105591861,0.39712,112350.0,112340.0,1.32535843]
[1759105591862,0.3608,112350.0,112340.0,1.32535843]
[1759105593958,0.3608,112350.0,112340.0,2.15155843]
[1759105596061,0.39746,112350.0,112340.0,0.14513985]
[1759105596362,0.39746,112350.0,112340.0,0.65856557]
[1759105596958,0.39746,112350.0,112340.0,0.91527843]
[1759105597360,0.39746,112350.0,112340.0,0.65856557]
[1759105598873,0.39746,112350.0,112340.0,1.32181843]
[1759105598874,0.3837,112350.0,112340.0,1.32181843]
[1759105599466,0.3837,112350.0,112340.0,0.92181843]
[1759105599967,0.39746,112350.0,112340.0,0.92181843]
[1759105600266,0.39746,112350.0,112340.0,0.91527843]
[1759105600565,0.39746,112350.0,112340.0,1.74131843]
[1759105601066,0.39746,112350.0,112340.0,1.74127843]
[1759105602758,0.39746,112350.0,112340.0,0.65856557]
[1759105602971,0.4864273,112350.0,112340.0,1.48452557]
[1759105603868,0.4864273,112350.0,112340.0,0.65856557]
[1759105604073,0.4864273,112350.0,112340.0,1.48452557]
[1759105604265,0.4864273,112350.0,112340.0,1.45260242]
[1759105604467,0.4864273,112350.0,112340.0,1.45256242]
[1759105606465,0.4864273,112350.0,112340.0,0.62664242]
[1759105607367,0.51835554,112350.0,112340.0,0.60440242]
[1759105608272,1.74419554,112350.0,112340.0,0.51542572]
[1759105608972,1.74419554,112350.0,112340.0,0.62664102]
[1759105609170,0.91835554,112350.0,112340.0,0.62664102]
[1759105609375,1.74415554,112350.0,112340.0,0.62664102]
[1759105610174,1.74415554,112350.0,112340.0,0.1132153]
[1759105610374,1.74415554,112350.0,112340.0,0.62664102]
[1759105611471,1.7122273,112350.0,112340.0,0.53766572]
[1759105611677,1.7122273,112350.0,112340.0,0.62664102]
[1759105612973,0.8864273,112350.0,112340.0,0.62664102]
[1759105613173,1.7121873,112350.0,112340.0,0.62664102]
[1759105615275,1.7121873,112350.0,112340.0,0.53766572]
[1759105616976,1.96890016,112350.0,112340.0,0.53766572]
[1759105617478,1.7121873,112350.0,112340.0,0.53766572]
[1759105617975,1.78335062,112350.0,112340.0,0.53766572]
[1759105618674,1.78335062,112350.0,112340.0,0.51542572]
[1759105619277,1.78335062,112350.0,112340.0,0.002]
[1759105619575,2.11985199,112350.0,112320.0,0.33658819]
[1759105619772,0.8451927,112330.0,112320.0,0.35793819]
[1759105619969,1.6708327,112330.0,112320.0,0.61465105]
[1759105620274,1.6708327,112330.0,112320.0,0.31013776]
[1759105620675,1.6708327,112330.0,112320.0,0.32013776]
[1759105620867,2.0708327,112330.0,112320.0,0.04192315]
[1759105621072,2.32769731,112330.0,112320.0,0.04192315]
[1759105621376,2.32769731,112330.0,112320.0,0.01]
[1759105621579,2.32769731,112330.0,112320.0,0.003]
[1759105621875,2.32769731,112330.0,112320.0,0.011]
[1759105622078,1.50205731,112330.0,112320.0,0.011]
[1759105622477,2.32765731,112330.0,112320.0,0.011]
[1759105622774,2.33671942,112330.0,112320.0,0.011]
[1759105625382,1.51111942,112330.0,112320.0,0.011]
[1759105625575,2.33671942,112330.0,112320.0,0.011]
[1759105627084,0.1236036,112320.0,112310.0,0.03192315]
[1759105627278,0.74126821,112320.0,112310.0,0.03192315]
[1759105627474,1.3099636,112320.0,112310.0,0.05327315]
[1759105627672,1.3099636,112320.0,112310.0,0.31013776]
[1759105628077,0.4844036,112320.0,112310.0,0.31013776]
[1759105628278,0.4844036,112320.0,112310.0,0.39913926]
[1759105628777,1.3099636,112320.0,112310.0,0.39913926]
[1759105629579,1.3099636,112320.0,112310.0,0.31013776]
[1759105629781,1.3099636,112320.0,112310.0,0.03592315]
[1759105629971,1.3099636,112320.0,112310.0,0.31413776]
[1759105630172,1.3099636,112320.0,112310.0,0.32113776]
[1759105631180,1.3099636,112320.0,112310.0,0.41013926]
[1759105631583,1.22097,112320.0,112310.0,0.41013926]
[1759105632275,1.3099636,112320.0,112310.0,0.41013926]
[1759105632480,1.3098836,112320.0,112310.0,0.41013926]
[1759105635981,1.3098836,112320.0,112310.0,0.32113776]
[1759105636186,1.3098836,112320.0,112310.0,0.06427315]
[1759105636378,1.3098836,112320.0,112310.0,0.32113776]
[1759105638088,1.3098836,112320.0,112310.0,0.28921461]
[1759105638387,1.3098836,112320.0,112310.0,0.37821611]
[1759105639180,1.3098036,112320.0,112310.0,0.37821611]
[1759105639376,1.3097636,112320.0,112310.0,0.37821611]
[1759105639572,0.4844036,112320.0,112310.0,0.37821611]
[1759105639773,1.3097636,112320.0,112310.0,0.37821611]
[1759105640078,1.3097636,112320.0,112310.0,0.28921461]
[1759105641000,1.3097636,112320.0,112310.0,0.37821611]
[1759105641388,0.39541,112320.0,112310.0,0.37821611]
[1759105641589,1.22073,112320.0,112310.0,0.39137611]
[1759105642389,1.3097235,112320.0,112310.0,0.39137611]
[1759105642993,1.3097235,112320.0,112310.0,0.28921461]
[1759105644000,1.3097235,112320.0,112310.0,0.37821611]
[1759105645601,1.22065,112320.0,112310.0,0.37821611]
[1759105645804,1.3096435,112320.0,112310.0,0.37821611]
[1759105648096,1.3096435,112320.0,112310.0,0.1213515]
[1759105648291,1.3096435,112320.0,112310.0,0.37821611]
[1759105649390,0.39541,112320.0,112310.0,0.37821611]
[1759105649590,0.44957548,112330.0,112320.0,0.1192435]
[1759105649796,1.27465548,112330.0,112320.0,0.63297272]
[1759105650294,0.44957548,112330.0,112320.0,0.64175719]
[1759105650491,1.27461548,112330.0,112320.0,0.64175719]
[1759105650691,1.33167284,112330.0,112320.0,0.64175719]
[1759105650896,1.33167284,112330.0,112320.0,0.62924272]
[1759105651098,1.33167284,112330.0,112320.0,0.63124272]
[1759105652499,1.36360108,112330.0,112320.0,0.28538461]
[1759105652803,1.36360108,112330.0,112320.0,0.26286461]
[1759105655499,1.76360108,112330.0,112320.0,0.26286461]
[1759105658208,0.93856108,112330.0,112320.0,0.26286461]
[1759105658406,1.76336108,112330.0,112320.0,0.26286461]
[1759105659501,1.36336108,112330.0,112320.0,0.006]
[1759105659905,1.36336108,112330.0,112320.0,0.26286461]
[1759105661704,2.06808596,112330.0,112320.0,0.006]
[1759105661906,1.66808596,112330.0,112320.0,0.006]
[1759105664107,1.41122135,112330.0,112320.0,0.006]
[1759105664309,1.37929311,112330.0,112320.0,0.006]
[1759105664607,1.77929311,112330.0,112320.0,0.006]
[1759105664802,2.03615772,112330.0,112320.0,0.006]
[1759105671408,0.0890015,112310.0,112300.0,0.03202941]
[1759105671614,1.3101415,112310.0,112300.0,0.28889402]
[1759105671812,1.6709415,112310.0,112300.0,0.31222402]
[1759105672015,1.6709415,112310.0,112300.0,0.28030087]
[1759105672414,1.94830872,112310.0,112300.0,0.00010626]
[1759105672613,1.69144411,112310.0,112300.0,0.04002941]
[1759105672910,1.69140411,112310.0,112300.0,0.29689402]
[1759105673311,0.88722723,112310.0,112300.0,0.26997087]
[1759105673511,0.88722723,112310.0,112300.0,0.01310626]
[1759105673712,1.71154723,112310.0,112300.0,0.01310626]
[1759105673918,1.71154723,112310.0,112300.0,0.26997087]
[1759105674513,0.8963035,112310.0,112300.0,0.26997087]
[1759105674716,1.7206235,112310.0,112300.0,0.26997087]
[1759105675023,0.96857434,112310.0,112300.0,0.26997087]
[1759105675223,1.79285434,112310.0,112300.0,0.01310626]
[1759105675617,1.82489789,112310.0,112300.0,0.01310626]
[1759105676316,0.0890173,112290.0,112280.0,0.30481679]
[1759105676522,1.33021784,112290.0,112280.0,0.32814679]
[1759105677117,1.33021784,112290.0,112280.0,0.28019461]
[1759105677325,1.33030045,112290.0,112280.0,0.28019461]
[1759105677626,1.33030045,112290.0,112280.0,0.29319461]
[1759105678324,1.33030045,112290.0,112280.0,0.28819461]
[1759105678625,1.33026045,112290.0,112280.0,0.28819461]
[1759105679423,1.69506045,112290.0,112280.0,0.28419461]
[1759105680223,0.1249652,112280.0,112270.0,0.16912718]
[1759105680427,0.39674,112280.0,112270.0,0.16912718]
[1759105680617,0.38389,112280.0,112270.0,0.18272718]
[1759105680819,0.02309,112280.0,112270.0,0.18272718]
[1759105681219,0.02309,112280.0,112270.0,0.69686986]
[1759105681620,0.38389,112280.0,112270.0,0.69686986]
[1759105682531,0.38489,112280.0,112270.0,0.69686986]
[1759105683329,0.4739152,112280.0,112270.0,0.69686986]
[1759105685824,0.38489,112280.0,112270.0,0.69686986]
[1759105686026,0.1131152,112280.0,112270.0,0.69686986]
[1759105686227,0.4739152,112280.0,112270.0,0.69686986]
[1759105690126,0.4867652,112280.0,112270.0,0.17391008]
[1759105690432,0.4867652,112280.0,112270.0,0.67445276]
[1759105691631,0.4867652,112280.0,112270.0,0.16031008]
[1759105691832,0.4867652,112280.0,112270.0,0.68321648]
[1759105692533,0.4867652,112280.0,112270.0,0.41738672]
[1759105694335,0.50682417,112280.0,112270.0,0.36943454]
[1759105695333,1.33058417,112280.0,112270.0,0.36943454]
[1759105695538,0.50682417,112280.0,112270.0,0.36943454]
[1759105695737,1.33058417,112280.0,112270.0,0.36943454]
[1759105697234,0.50682417,112280.0,112270.0,0.36943454]
[1759105697537,1.33054417,112280.0,112270.0,0.36943454]
[1759105702836,1.33042417,112280.0,112270.0,0.36943454]
[1759105705450,1.33042417,112280.0,112270.0,0.28040134]
[1759105705650,1.33026417,112280.0,112270.0,0.36943454]
[1759105711850,0.41779897,112280.0,112270.0,0.36943454]
[1759105712051,1.24103897,112280.0,112270.0,0.62650588]
[1759105712243,1.24103897,112280.0,112270.0,0.1123632]
[1759105712449,1.33006417,112280.0,112270.0,0.62650588]
[1759105713754,1.32998417,112280.0,112270.0,0.62650588]
[1759105713954,0.50682417,112280.0,112270.0,0.62650588]
[1759105714158,1.32998417,112280.0,112270.0,0.62650588]
[1759105715958,1.32998417,112280.0,112270.0,0.36943454]
[1759105717751,1.58705551,112280.0,112270.0,0.02333]
[1759105717956,0.1238632,112270.0,112260.0,0.41691762]
[1759105718146,0.50472217,112270.0,112260.0,0.67398896]
[1759105718351,0.50472217,112270.0,112260.0,0.15984628]
[1759105718551,0.50472217,112270.0,112260.0,0.62603678]
[1759105719151,0.50472217,112270.0,112260.0,0.62803678]
[1759105719554,0.50472217,112270.0,112260.0,0.63003678]
[1759105719757,0.41568897,112270.0,112260.0,0.63003678]
[1759105720261,1.29719644,112270.0,112260.0,0.69105896]
[1759105721252,1.31060644,112270.0,112260.0,0.69105896]
[1759105721453,0.48768644,112270.0,112260.0,0.69105896]
[1759105721753,1.31056644,112270.0,112260.0,0.69105896]
[1759105723963,0.48768644,112270.0,112260.0,0.69105896]
[1759105724163,1.31052644,112270.0,112260.0,0.69105896]
[1759105725157,1.31052644,112270.0,112260.0,0.64310678]
[1759105727658,1.31054515,112270.0,112260.0,0.64310678]
[1759105728566,1.39957835,112270.0,112260.0,0.64310678]
[1759105730669,1.39957835,112270.0,112260.0,0.63003678]
[1759105730970,1.67724611,112270.0,112260.0,0.004]
[1759105731170,1.67724611,112270.0,112260.0,0.26107134]
[1759105731771,1.67724611,112270.0,112260.0,0.35011244]
[1759105731972,1.67724611,112270.0,112260.0,0.60718378]
[1759105732273,1.67724611,112270.0,112260.0,0.35011244]
[1759105732571,1.67724611,112270.0,112260.0,0.26107134]
[1759105733176,1.67724611,112270.0,112260.0,0.0930411]
[1759105733470,1.67724611,112270.0,112260.0,0.63049378]
[1759105734271,0.85440611,112270.0,112260.0,0.63049378]
[1759105734472,1.41985477,112270.0,112260.0,0.63049378]
[1759105735562,0.50830157,112270.0,112260.0,0.63049378]
[1759105735767,0.49489157,112270.0,112260.0,0.64392378]
[1759105736072,1.22469768,112270.0,112260.0,1.30099512]
[1759105736271,1.22469768,112270.0,112260.0,1.04392378]
[1759105736472,0.40229768,112270.0,112260.0,1.04392378]
[1759105737061,0.41584768,112270.0,112260.0,0.64392378]
[1759105737266,0.41584768,112270.0,112260.0,0.63049378]
[1759105737968,0.57610204,112270.0,112260.0,0.63049378]
[1759105740377,0.57610204,112270.0,112260.0,0.37349644]
[1759105744678,0.57610204,112270.0,112260.0,0.1163511]
[1759105744875,0.48706884,112270.0,112260.0,0.37349644]
[1759105745879,0.57610204,112270.0,112260.0,0.37349644]
[1759105746072,0.48706884,112270.0,112260.0,0.37349644]
[1759105746269,1.30914884,112270.0,112260.0,0.37349644]
[1759105747180,1.39818204,112270.0,112260.0,0.37349644]
[1759105749077,0.57609964,112270.0,112260.0,0.38692644]
[1759105749279,1.39809964,112270.0,112260.0,0.38692644]
[1759105750076,1.30906884,112270.0,112260.0,0.38692644]
[1759105750279,1.39809944,112270.0,112260.0,0.1163511]
[1759105750673,1.39809944,112270.0,112260.0,0.26114534]
[1759105750877,1.39809944,112270.0,112260.0,0.35018384]
[1759105751087,1.39809944,112270.0,112260.0,0.37349384]
[1759105752581,1.39809944,112270.0,112260.0,0.28445534]
[1759105752888,1.39809944,112270.0,112260.0,0.37349424]
[1759105753487,1.39809944,112270.0,112260.0,0.1163489]
[1759105753689,1.39809944,112270.0,112260.0,0.37349424]
[1759105754189,0.48706884,112270.0,112260.0,0.37349424]
[1759105754480,1.30894884,112270.0,112260.0,0.37349424]
[1759105754878,1.30886884,112270.0,112260.0,0.37349424]
[1759105755081,0.48706884,112270.0,112260.0,0.38681424]
[1759105755385,1.30886884,112270.0,112260.0,0.38681424]
[1759105755586,1.30882884,112270.0,112260.0,0.64395958]
[1759105756480,0.48706884,112270.0,112260.0,0.64395958]
[1759105756679,1.30882884,112270.0,112260.0,0.64395958]
[1759105756888,0.48706884,112270.0,112260.0,0.63063958]
[1759105757079,1.30878884,112270.0,112260.0,0.63063958]
[1759105758584,0.48706884,112270.0,112260.0,0.63063958]
[1759105758785,1.30878884,112270.0,112260.0,0.63063958]
[1759105759393,1.39781984,112270.0,112260.0,0.63063958]
[1759105760090,1.39781984,112270.0,112260.0,0.37349424]
[1759105762487,0.48706884,112270.0,112260.0,0.37349424]
[1759105762684,0.47351884,112270.0,112260.0,0.64430958]
[1759105762882,1.29503884,112270.0,112260.0,0.64430958]
[1759105765092,1.38407084,112270.0,112260.0,0.64430958]
[1759105765290,1.39751084,112270.0,112260.0,0.64430958]
[1759105765887,1.39751084,112270.0,112260.0,0.69226176]
[1759105766887,1.39751084,112270.0,112260.0,0.64430958]
[1759105767187,1.39751084,112270.0,112260.0,0.69226176]
[1759105767383,1.39751084,112270.0,112260.0,0.64430958]
[1759105767595,1.39751084,112270.0,112260.0,0.69226176]
[1759105768696,1.39751084,112270.0,112260.0,0.64430958]
[1759105770898,0.57599084,112270.0,112260.0,0.64430958]
[1759105771197,1.39727084,112270.0,112260.0,0.64430958]
[1759105771397,0.57599084,112270.0,112260.0,0.64430958]
[1759105771598,1.39723084,112270.0,112260.0,0.64430958]
[1759105771795,1.39719084,112270.0,112260.0,0.64430958]
[1759105773102,0.57599084,112270.0,112260.0,0.64430958]
[1759105773302,1.39719084,112270.0,112260.0,0.64430958]
[1759105775405,1.39719084,112270.0,112260.0,0.63063958]
[1759105777000,1.39719084,112270.0,112260.0,0.37349424]
[1759105777508,0.57599084,112270.0,112260.0,0.37349424]
[1759105777711,1.30795884,112270.0,112260.0,0.64430958]
[1759105778312,0.48695884,112270.0,112260.0,0.64430958]
[1759105778508,1.30795884,112270.0,112260.0,0.64430958]
[1759105778715,1.39699084,112270.0,112260.0,0.64430958]
[1759105780910,0.48695884,112270.0,112260.0,0.64430958]
[1759105781115,1.29443884,112270.0,112260.0,0.64430958]
[1759105781420,1.29443884,112270.0,112260.0,0.69226176]
[1759105782417,1.38347094,112270.0,112260.0,0.69226176]
[1759105783418,1.39691094,112270.0,112260.0,0.69226176]
[1759105785720,1.39691094,112270.0,112260.0,0.67859176]
[1759105787720,1.3970231,112270.0,112260.0,0.67859176]
[1759105791723,1.3970231,112270.0,112260.0,0.63063958]
[1759105799335,1.32580194,112270.0,112260.0,0.63063958]
[1759105801529,1.32512194,112270.0,112260.0,0.63063958]
[1759105802432,1.32512194,112270.0,112260.0,0.63058374]
[1759105804130,1.22252984,112270.0,112260.0,0.90050116]
[1759105804529,1.22252984,112270.0,112260.0,0.64338374]
[1759105804932,0.40240984,112270.0,112260.0,0.64338374]
[1759105805329,0.40240984,112270.0,112260.0,0.90050116]
[1759105805330,1.22252984,112270.0,112260.0,0.90050116]
[1759105805528,0.04160984,112270.0,112260.0,0.90050116]
[1759105805725,0.04160984,112270.0,112260.0,2.52933334]
[1759105805726,0.02018984,112270.0,112260.0,2.52933334]
[1759105806322,1.15113963,112290.0,112270.0,0.123512]
[1759105806323,0.46203273,112290.0,112270.0,0.123512]
[1759105806527,0.43533353,112290.0,112280.0,0.38062152]
[1759105807236,0.0211174,112290.0,112280.0,1.29485636]
[1759105807725,0.0211174,112290.0,112280.0,2.11485636]
[1759105808137,0.41421613,112310.0,112300.0,0.1018082]
[1759105808336,0.05341613,112310.0,112300.0,0.38060562]
[1759105809037,0.14241643,112310.0,112300.0,0.38973297]
[1759105809226,0.50321643,112310.0,112300.0,0.38973297]
[1759105809426,0.50821643,112310.0,112300.0,0.64685039]
[1759105809627,0.51821643,112310.0,112300.0,0.64685039]
[1759105810130,0.53140643,112310.0,112300.0,0.54871484]
[1759105810433,0.53140643,112310.0,112300.0,0.63772314]
[1759105811534,0.44240613,112310.0,112300.0,0.63772314]
[1759105811730,0.53140643,112310.0,112300.0,0.63772314]
[1759105812032,0.53140643,112310.0,112300.0,0.54871484]
[1759105812931,0.53140643,112310.0,112300.0,0.63772314]
[1759105813235,0.53140643,112310.0,112300.0,0.54871484]
[1759105813437,0.53140643,112310.0,112300.0,0.63772314]
[1759105816436,0.4993603,112310.0,112300.0,0.63772314]
[1759105816940,0.53140643,112310.0,112300.0,0.63772314]
[1759105817334,0.4993603,112310.0,112300.0,0.63772314]
[1759105817534,1.15647772,112310.0,112280.0,0.26991742]
[1759105817839,0.74151362,112290.0,112280.0,0.27865742]
[1759105818034,0.50513892,112290.0,112280.0,0.25711742]
[1759105818226,0.50513892,112290.0,112260.0,0.30162221]
[1759105818227,0.089032,112270.0,112260.0,0.30162221]
[1759105818431,0.485042,112270.0,112260.0,0.27891742]
[1759105818938,0.485042,112270.0,112260.0,0.53603484]
[1759105819240,0.86632401,112270.0,112260.0,0.53603484]
[1759105819731,1.26632401,112270.0,112260.0,0.53603484]
[1759105820239,2.08572401,112270.0,112260.0,0.62507484]
[1759105820433,2.08572401,112270.0,112260.0,0.62707484]
[1759105820629,1.26632401,112270.0,112260.0,0.53803484]
[1759105820828,2.34284143,112270.0,112260.0,0.26111742]
[1759105821039,2.3628367,112270.0,112260.0,0.26111742]
[1759105821340,2.34284143,112270.0,112260.0,0.26111742]
[1759105821540,2.34280143,112270.0,112260.0,0.26111742]
[1759105822041,1.52344143,112270.0,112260.0,0.26111742]
[1759105822235,2.34280143,112270.0,112260.0,0.26111742]
[1759105822841,1.52344143,112270.0,112260.0,0.26111742]
[1759105823029,2.08568401,112270.0,112260.0,0.62907484]
[1759105823234,1.59665201,112270.0,112260.0,0.64268484]
[1759105823838,0.86632401,112270.0,112260.0,0.64268484]
[1759105824342,1.58393201,112270.0,112260.0,0.64268484]
[1759105825549,0.76457201,112270.0,112260.0,0.64268484]
[1759105825746,0.76457201,112270.0,112260.0,1.29980226]
[1759105826230,0.76457201,112270.0,112260.0,1.04268484]
[1759105826749,0.85360401,112270.0,112260.0,0.95364484]
[1759105826950,0.86632401,112270.0,112260.0,0.54003484]
[1759105827642,0.88632528,112270.0,112260.0,0.54003484]
[1759105829236,1.70560528,112270.0,112260.0,0.54003484]
[1759105829539,1.70560528,112270.0,112260.0,0.62907484]
[1759105829740,0.88632528,112270.0,112260.0,0.62907484]
[1759105830143,0.78457328,112270.0,112260.0,0.64268484]
[1759105830441,0.78457328,112270.0,112260.0,0.89980226]
[1759105833037,0.02000127,112270.0,112260.0,1.66060226]
[1759105833641,0.02000127,112270.0,112260.0,1.74060226]
[1759105834845,0.38154272,112290.0,112280.0,0.1163141]
[1759105835052,0.4633232,112300.0,112290.0,0.1244262]
[1759105835053,0.50434933,112300.0,112290.0,0.1244262]
[1759105835349,0.50434933,112300.0,112290.0,0.63866104]
[1759105836451,0.51706933,112300.0,112290.0,0.53603484]
[1759105836944,0.52006933,112300.0,112290.0,0.62505104]
[1759105837145,0.52706933,112300.0,112290.0,0.62505104]
[1759105839950,0.43805613,112300.0,112290.0,0.62505104]
[1759105840646,0.52706443,112300.0,112290.0,0.62505104]
[1759105841151,0.57513363,112300.0,112290.0,0.62505104]
[1759105841343,0.5430875,112300.0,112290.0,0.62505104]
[1759105841738,0.4413592,112300.0,112290.0,0.63866104]
[1759105841943,0.4413592,112300.0,112290.0,0.1244262]
[1759105842245,0.5430875,112300.0,112290.0,0.62505104]
[1759105843145,0.5430875,112300.0,112290.0,0.36793362]
[1759105843343,0.5430875,112300.0,112290.0,0.62505104]
[1759105846154,0.4950183,112300.0,112290.0,0.62505104]
[1759105847054,0.51504468,112300.0,112290.0,0.62505104]
[1759105850063,0.51504468,112300.0,112290.0,0.1108162]
[1759105850250,0.51504468,112300.0,112290.0,0.62505104]
[1759105851257,0.59508098,112300.0,112290.0,0.62505104]
[1759105853347,0.56306646,112300.0,112290.0,0.62505104]
[1759105858761,0.54304008,112300.0,112290.0,0.62505104]
[1759105864158,0.4950183,112300.0,112290.0,0.62505104]
[1759105864359,0.4950183,112300.0,112290.0,0.0218]
[1759105864566,0.4950183,112300.0,112290.0,0.62471954]
[1759105867166,0.53037659,112300.0,112290.0,0.63771954]
[1759105871076,0.54344659,112300.0,112290.0,0.63771954]
[1759105872065,0.41887839,112300.0,112290.0,0.63771954]
[1759105872468,0.50788659,112300.0,112290.0,0.63771954]
[1759105872669,0.52978659,112300.0,112290.0,0.63771954]